bitfinex/quotes_ETHUSD_20250520
["timestamp","ask_amount","ask_price","bid_price","bid_amount"]
[1747750530206,1.9986654,2468.6,2468.5,8.55]
[1747750530398,1.9986654,2468.6,2468.5,41.923008]
[1747750530829,1.9986654,2468.6,2468.5,48.27706609]
[1747750531031,1.79553879,2468.6,2468.5,52.17942897]
[1747750531439,1.79553879,2468.6,2468.5,56.23047211]
[1747750531759,4.05028316,2469.0,2468.5,52.32810923]
[1747750531935,4.05028316,2469.0,2468.7,8.55]
[1747750532251,4.05028316,2469.0,2468.9,8.0]
[1747750532448,5.8454788,2469.2,2468.9,22.398898]
[1747750532687,1.79553879,2469.2,2469.1,8.55]
[1747750532834,1.79553879,2469.2,2469.1,39.90006672]
[1747750533035,1.79553879,2469.2,2469.1,35.850008]
[1747750533229,1.79553879,2469.2,2469.1,38.2453897]
[1747750533558,1.79553879,2469.2,2469.1,35.850008]
[1747750533757,1.79553879,2469.2,2469.1,39.90006672]
[1747750534061,4.04935725,2469.6,2469.1,39.90006672]
[1747750534356,4.04935725,2469.6,2469.3,0.55]
[1747750534561,4.04935725,2469.6,2469.5,8.0]
[1747750534765,4.04902872,2469.8,2469.5,18.399]
[1747750534923,4.04923874,2469.6,2469.5,24.47]
[1747750535123,4.04923874,2469.6,2469.5,41.370008]
[1747750535349,4.04879399,2469.9,2469.5,34.906109]
[1747750535662,4.04915937,2469.7,2469.6,16.47]
[1747750535861,6.6468417,2470.1,2469.6,26.508612]
[1747750536022,4.04907478,2469.7,2469.6,24.47]
[1747750536227,4.04907478,2469.7,2469.6,29.063024]
[1747750536474,4.04891084,2469.8,2469.7,8.0]
[1747750536958,4.04875389,2469.9,2469.7,10.078284]
[1747750537127,4.04845154,2470.1,2469.8,5.81083]
[1747750537321,4.04874691,2469.9,2469.8,3.63295]
[1747750537546,4.04874691,2469.9,2469.8,12.18285]
[1747750537782,4.04874691,2469.9,2469.8,14.07]
[1747750537944,4.04874691,2469.9,2469.8,24.349455]
[1747750538143,4.04874691,2469.9,2469.8,14.07]
[1747750538387,4.04874691,2469.9,2469.8,12.71514617]
[1747750538771,4.04874691,2469.9,2469.8,9.05366]
[1747750539348,4.04874691,2469.9,2469.8,2.98366]
[1747750539655,0.8243,2470.6,2469.4,17.484]
[1747750539861,4.04874691,2469.9,2469.8,10.091]
[1747750540166,4.04851568,2470.1,2469.8,18.693645]
[1747750540478,4.04851568,2470.1,2469.9,10.05766]
[1747750540687,4.04858299,2470.0,2469.9,2.45955]
[1747750540980,4.048322,2470.2,2470.0,8.0]
[1747750541187,4.04811817,2470.3,2470.1,9.87225]
[1747750541545,4.0482552,2470.2,2470.1,8.55]
[1747750541770,4.04811465,2470.3,2470.1,8.55]
[1747750541983,4.04811465,2470.3,2470.1,0.55]
[1747750542179,4.04811465,2470.3,2470.2,6.79116]
[1747750542382,0.7995,2471.4,2470.3,8.55]
[1747750542582,0.7995,2471.4,2470.4,27.571]
[1747750542583,4.04764595,2470.6,2470.4,27.571]
[1747750542809,4.04759977,2470.6,2470.5,6.069]
[1747750543016,4.04759977,2470.6,2470.5,10.8753]
[1747750543221,4.04759977,2470.6,2470.5,9.8553]
[1747750543523,4.04767098,2470.6,2470.5,10.09]
[1747750543682,4.04767098,2470.6,2470.5,21.9821]
[1747750544197,0.7995,2471.4,2470.6,0.55]
[1747750544508,4.04722553,2470.9,2470.6,0.55]
[1747750544711,0.7995,2471.4,2470.8,0.55]
[1747750544878,0.7995,2471.4,2470.8,5.05663732]
[1747750544879,4.04704544,2471.0,2470.8,5.05663732]
[1747750545221,4.04563476,2471.8,2471.0,0.55]
[1747750545379,4.04648028,2471.3,2471.1,10.09]
[1747750545576,4.04661702,2471.2,2471.1,10.09]
[1747750545777,4.04661702,2471.2,2471.1,14.603207]
[1747750546080,4.04661702,2471.2,2471.1,10.09]
[1747750546277,4.50663732,2473.0,2471.1,22.59663732]
[1747750546477,4.0453224,2472.0,2471.4,4.50663732]
[1747750546801,4.04563476,2471.8,2471.7,4.50663732]
[1747750546998,4.04563476,2471.8,2471.7,27.91878232]
[1747750547200,4.04563476,2471.8,2471.7,32.71652732]
[1747750547515,0.7873,2472.3,2471.7,33.26652732]
[1747750547516,4.04555305,2471.9,2471.7,33.26652732]
[1747750547682,4.04538453,2472.0,2471.8,5.64062]
[1747750548013,4.04538453,2472.0,2471.9,8.0]
[1747750548216,4.04538453,2472.0,2471.9,14.436717]
[1747750548378,4.04538453,2472.0,2471.9,10.765139]
[1747750548716,4.04522173,2472.1,2471.9,16.157]
[1747750548921,4.04498997,2472.2,2472.0,0.55]
[1747750549087,4.04473902,2472.4,2472.0,23.04583632]
[1747750549409,0.7733,2473.1,2472.2,0.55]
[1747750549585,4.04456749,2472.5,2472.2,0.55]
[1747750549785,4.04439418,2472.6,2472.4,8.0]
[1747750549984,4.04432581,2472.6,2472.5,30.442]
[1747750550401,4.04432581,2472.6,2472.5,34.173]
[1747750550600,4.04432581,2472.6,2472.5,40.863525]
[1747750551111,4.04269203,2473.6,2472.5,40.863525]
[1747750551112,4.80669203,2473.6,2472.6,8.55]
[1747750551316,4.04407316,2472.8,2472.6,8.55]
[1747750551476,4.04391435,2472.9,2472.7,12.891741]
[1747750551682,4.04381298,2473.0,2472.8,0.55]
[1747750551883,4.04355974,2473.1,2472.8,12.179888]
[1747750552120,4.04334877,2473.2,2473.0,0.55]
[1747750552421,4.04334877,2473.2,2473.1,15.10545]
[1747750552792,4.04334877,2473.2,2473.1,10.084]
[1747750553124,4.04363815,2473.1,2473.0,6.065]
[1747750553423,4.04399535,2472.9,2472.8,0.55]
[1747750553576,4.04399535,2472.9,2472.8,8.55]
[1747750553781,4.04399535,2472.9,2472.8,24.699]
[1747750554044,4.04432581,2472.6,2472.5,17.471]
[1747750554193,4.04432581,2472.6,2472.5,25.471]
[1747750554515,4.04432581,2472.6,2472.5,35.555]
[1747750555191,4.04432581,2472.6,2472.5,27.555]
[1747750555387,4.04432581,2472.6,2472.5,27.553]
[1747750555783,4.04432581,2472.6,2472.5,17.471]
[1747750556118,4.04432581,2472.6,2472.5,27.553]
[1747750557918,0.7907,2474.1,2472.6,8.55]
[1747750558118,4.0430177,2473.4,2472.6,8.55]
[1747750558318,4.04285425,2473.5,2472.6,8.55]
[1747750558319,4.04409738,2472.8,2472.6,8.55]
[1747750558618,4.04236397,2473.8,2472.8,8.55]
[1747750558822,4.0436078,2473.1,2472.9,6.063]
[1747750559116,4.0436078,2473.1,2473.0,10.081]
[1747750559297,4.0436078,2473.1,2473.0,20.826748]
[1747750559497,4.0436078,2473.1,2473.0,18.4403]
[1747750559709,4.0436078,2473.1,2473.0,16.533226]
[1747750560219,4.0436078,2473.1,2473.0,15.918247]
[1747750560392,4.04339908,2473.2,2473.0,14.0716]
[1747750560595,4.04223478,2473.9,2473.2,0.55]
[1747750560781,4.83266184,2474.1,2473.2,8.55]
[1747750560981,4.04069336,2474.9,2473.7,4.50663732]
[1747750560982,0.7877,2474.5,2473.7,4.50663732]
[1747750561188,4.04253635,2473.7,2473.5,8.55]
[1747750561400,4.04252738,2473.7,2473.6,35.340367]
[1747750561597,4.04242991,2473.8,2473.6,35.340367]
[1747750561798,0.7877,2474.5,2473.7,10.858682]
[1747750561998,4.04220088,2473.9,2473.7,0.55]
[1747750562199,4.04220088,2473.9,2473.8,13.170056]
[1747750562401,4.04188017,2474.1,2473.9,0.55]
[1747750562601,4.04188017,2474.1,2474.0,8.128536]
[1747750562924,4.04188017,2474.1,2474.0,9.161571]
[1747750563221,4.0412123,2474.6,2474.0,9.161571]
[1747750563222,4.04179405,2474.2,2474.0,8.601065]
[1747750563424,4.04171045,2474.2,2474.1,21.639705]
[1747750563624,4.04171045,2474.2,2474.1,21.439705]
[1747750563923,4.04171045,2474.2,2474.1,21.15014]
[1747750564123,4.04171045,2474.2,2474.1,13.396699]
[1747750564427,4.04171045,2474.2,2474.1,13.884649]
[1747750564623,4.04220057,2473.9,2473.7,0.55]
[1747750564924,4.04220057,2473.9,2473.8,24.6312]
[1747750565124,4.04209951,2474.0,2473.8,25.1812]
[1747750565426,4.04203718,2474.0,2473.9,18.867331]
[1747750565604,4.04203718,2474.0,2473.9,8.0]
[1747750565805,4.04203718,2474.0,2473.9,11.33345]
[1747750566603,4.04252738,2473.7,2473.6,25.46]
[1747750566804,4.04252738,2473.7,2473.6,27.234]
[1747750567218,4.04252738,2473.7,2473.6,17.46]
[1747750567419,4.04252738,2473.7,2473.6,27.234]
[1747750567598,4.86682738,2473.7,2473.6,27.234]
[1747750568001,4.04239594,2473.8,2473.7,0.55]
[1747750568002,4.04236397,2473.8,2473.7,0.55]
[1747750568202,4.04236397,2473.8,2473.7,8.0]
[1747750568630,4.04252738,2473.7,2473.6,17.46]
[1747750568831,4.04252738,2473.7,2473.6,35.234]
[1747750569138,4.04252738,2473.7,2473.6,38.458002]
[1747750569436,4.04252738,2473.7,2473.6,35.234]
[1747750569810,4.04252738,2473.7,2473.6,38.062456]
[1747750570007,4.04252738,2473.7,2473.6,35.234]
[1747750570610,4.04252738,2473.7,2473.6,24.10709961]
[1747750570820,4.04252738,2473.7,2473.6,25.88009961]
[1747750572701,4.04252738,2473.7,2473.6,31.22209961]
[1747750572896,4.04213695,2474.0,2473.7,8.55]
[1747750573222,4.04222407,2473.9,2473.8,8.55]
[1747750573749,4.0420264,2474.1,2473.9,8.0]
[1747750573900,4.04203718,2474.0,2473.9,8.0]
[1747750574109,4.04203718,2474.0,2473.9,13.15172]
[1747750575351,4.04252738,2473.7,2473.6,25.88009961]
[1747750575505,4.04252738,2473.7,2473.6,33.88009961]
[1747750575706,0.7521,2474.6,2473.6,37.05270861]
[1747750576038,4.04230801,2473.9,2473.6,33.88009961]
[1747750576243,4.04230801,2473.9,2473.8,8.0]
[1747750576555,4.04230801,2473.9,2473.8,10.4462]
[1747750577063,4.04211932,2474.0,2473.8,10.4462]
[1747750577218,4.04211932,2474.0,2473.9,5.676625]
[1747750577417,4.04211932,2474.0,2473.9,2.616825]
[1747750577741,4.04220057,2473.9,2473.8,8.0]
[1747750578051,4.04220057,2473.9,2473.8,10.102634]
[1747750578467,4.04188046,2474.1,2473.8,10.102634]
[1747750578779,4.04138572,2474.4,2473.8,10.102634]
[1747750578780,4.04213934,2474.0,2473.9,7.087825]
[1747750578938,4.04187835,2474.1,2473.9,9.771]
[1747750579136,4.04187835,2474.1,2474.0,4.21722745]
[1747750579459,4.04187835,2474.1,2474.0,0.22577145]
[1747750580657,4.81457835,2474.1,2474.0,0.22577145]
[1747750580838,4.81457835,2474.1,2474.0,9.99677145]
[1747750581039,4.04187835,2474.1,2474.0,9.99677145]
[1747750584618,0.47598678,2474.7,2474.0,26.89677945]
[1747750584822,0.47598678,2474.7,2474.2,0.55]
[1747750585059,0.47598678,2474.7,2474.3,0.04040909]
[1747750585357,0.47598678,2474.7,2474.4,5.764452]
[1747750585521,4.04112574,2474.6,2474.5,27.221]
[1747750585722,4.04112574,2474.6,2474.5,32.925064]
[1747750585921,4.04112574,2474.6,2474.5,33.15083545]
[1747750586144,4.04112574,2474.6,2474.5,27.44677145]
[1747750586737,4.04112574,2474.6,2474.5,41.87860445]
[1747750586933,4.04112574,2474.6,2474.5,27.44677145]
[1747750587237,4.04112574,2474.6,2474.5,29.49277145]
[1747750587856,4.04105714,2474.6,2474.5,29.49277145]
[1747750588071,4.04105714,2474.6,2474.5,27.44677145]
[1747750588242,4.04105714,2474.6,2474.5,29.63677145]
[1747750588447,4.04105714,2474.6,2474.5,27.44677145]
[1747750589937,4.04105714,2474.6,2474.5,27.14877145]
[1747750590138,4.04105714,2474.6,2474.5,26.923]
[1747750590539,4.84865714,2474.6,2474.5,26.923]
[1747750591770,4.04236397,2473.8,2473.7,17.447]
[1747750591953,4.04236397,2473.8,2473.7,9.473]
[1747750592471,4.42663175,2473.8,2473.7,9.473]
[1747750594045,4.04236397,2473.8,2473.7,9.473]
[1747750594371,4.04269081,2473.6,2473.5,17.447]
[1747750594558,4.04269081,2473.6,2473.5,26.921]
[1747750595579,12.42695859,2473.6,2473.5,26.921]
[1747750596074,4.42695859,2473.6,2473.5,26.921]
[1747750597990,4.42695859,2473.6,2473.5,17.447]
[1747750597991,13.20705859,2473.6,2473.5,17.447]
[1747750598147,4.0430177,2473.4,2473.3,9.475]
[1747750598347,4.04383517,2472.9,2472.8,17.452]
[1747750598583,4.04383517,2472.9,2472.8,26.927]
[1747750600650,4.04383517,2472.9,2472.8,17.452]
[1747750600846,4.04383517,2472.9,2472.8,26.928]
[1747750601873,0.62340705,2474.1,2473.0,4.04367165]
[1747750602188,4.04292829,2473.5,2473.0,0.55]
[1747750602481,4.04367165,2473.0,2472.9,0.7893]
[1747750602647,4.04383517,2472.9,2472.8,17.452]
[1747750602845,4.04383517,2472.9,2472.8,26.929]
[1747750603581,4.04383517,2472.9,2472.8,30.082973]
[1747750603765,4.04383517,2472.9,2472.8,29.341003]
[1747750604349,0.62340705,2474.6,2472.9,4.80073517]
[1747750604555,0.62340705,2474.6,2473.2,0.7569]
[1747750604785,4.5175383,2474.3,2473.7,4.04236595]
[1747750604984,4.0419486,2474.1,2473.9,9.3395]
[1747750605154,4.04187381,2474.1,2474.0,2.6689]
[1747750605355,4.04179445,2474.2,2473.9,9.3395]
[1747750605587,4.04179445,2474.2,2474.0,2.4864]
[1747750605900,4.04203718,2474.0,2473.9,8.7895]
[1747750606057,4.04203718,2474.0,2473.9,14.128483]
[1747750606258,4.04203718,2474.0,2473.9,11.485483]
[1747750607191,4.0417735,2474.2,2473.9,11.485483]
[1747750607489,4.04187381,2474.1,2474.0,4.695733]
[1747750607703,4.04187381,2474.1,2473.9,8.0]
[1747750607704,4.04203718,2474.0,2473.9,8.0]
[1747750607861,4.04203718,2474.0,2473.9,22.328438]
[1747750608054,4.04203718,2474.0,2473.9,20.271788]
[1747750608261,4.04089884,2474.7,2473.9,20.271788]
[1747750608506,4.04168732,2474.3,2473.9,17.476]
[1747750608797,4.04173146,2474.2,2473.9,21.06503331]
[1747750608998,4.86136256,2474.9,2474.1,8.0]
[1747750609175,4.04123278,2474.5,2474.3,0.7898]
[1747750609363,4.04115611,2474.6,2474.4,17.22689]
[1747750609692,4.04115611,2474.6,2474.4,9.475]
[1747750609894,4.04122044,2474.5,2474.4,9.475]
[1747750610109,4.04122044,2474.5,2474.4,2.484]
[1747750610261,4.04122044,2474.5,2474.4,9.475]
[1747750611886,4.04122044,2474.5,2474.4,13.69788]
[1747750612084,4.04122044,2474.5,2474.4,21.69788]
[1747750612290,4.04098352,2474.7,2474.5,8.55]
[1747750612501,4.04105714,2474.6,2474.5,8.0]
[1747750612705,4.04122044,2474.5,2474.4,0.22505368]
[1747750613040,4.04122044,2474.5,2474.4,9.69905368]
[1747750613247,4.04122044,2474.5,2474.4,9.474]
[1747750613426,4.04174212,2474.2,2474.0,6.8491]
[1747750613605,4.04174212,2474.2,2474.1,12.6414]
[1747750613804,4.04174212,2474.2,2474.1,9.474]
[1747750614004,4.04203718,2474.0,2473.9,8.0]
[1747750614201,4.04220057,2473.9,2473.7,0.40933309]
[1747750614414,4.04220057,2473.9,2473.8,34.929]
[1747750614801,4.04220057,2473.9,2473.8,26.929]
[1747750621140,4.04220057,2473.9,2473.8,34.929]
[1747750621342,4.04203718,2474.0,2473.8,41.492428]
[1747750621544,4.04203718,2474.0,2473.8,37.30420469]
[1747750621545,4.04220057,2473.9,2473.8,37.30420469]
[1747750621707,4.04220057,2473.9,2473.8,34.929]
[1747750621905,4.04220057,2473.9,2473.8,17.455]
[1747750622109,4.04220057,2473.9,2473.8,26.741]
[1747750622323,4.04220057,2473.9,2473.8,17.455]
[1747750622519,4.04220057,2473.9,2473.8,26.741]
[1747750622749,4.04220057,2473.9,2473.8,25.455]
[1747750622914,4.04203718,2474.0,2473.9,8.55]
[1747750623113,4.04203718,2474.0,2473.9,17.286]
[1747750623314,4.04220057,2473.9,2473.8,17.455]
[1747750623648,4.04220057,2473.9,2473.8,26.741]
[1747750624358,4.04194908,2474.1,2473.9,8.55]
[1747750624520,4.04195408,2474.1,2474.0,12.136973]
[1747750625033,4.04195408,2474.1,2474.0,11.6665]
[1747750625240,4.04195408,2474.1,2474.0,10.6215]
[1747750625759,4.04195408,2474.1,2474.0,10.318473]
[1747750625930,4.04195408,2474.1,2474.0,14.08062149]
[1747750626461,4.04101407,2474.7,2474.1,8.0]
[1747750626768,4.04146452,2474.4,2474.2,0.55]
[1747750626916,4.04146452,2474.4,2474.3,24.528893]
[1747750627320,4.04146452,2474.4,2474.3,17.285]
[1747750627539,4.04146452,2474.4,2474.3,19.29]
[1747750627826,4.04187381,2474.1,2474.0,14.817]
[1747750628059,4.04187381,2474.1,2474.0,28.979572]
[1747750628252,4.04187381,2474.1,2474.0,31.30470143]
[1747750628622,4.04174904,2474.2,2474.1,8.0]
[1747750628954,4.04161739,2474.3,2474.1,18.423175]
[1747750629148,4.04161739,2474.3,2474.2,9.24046]
[1747750629654,4.04125584,2474.5,2474.2,9.24046]
[1747750629655,4.04146487,2474.4,2474.3,8.55]
[1747750629856,4.04146487,2474.4,2474.3,14.35371]
[1747750630155,4.0415471,2474.3,2474.1,8.0]
[1747750630352,4.04171045,2474.2,2474.1,8.55]
[1747750630753,4.04171045,2474.2,2474.1,18.88904859]
[1747750630944,4.04171045,2474.2,2474.1,25.83969759]
[1747750632421,4.04171045,2474.2,2474.1,23.56858759]
[1747750632646,4.04171045,2474.2,2474.1,17.51058759]
[1747750634441,4.04171045,2474.2,2474.1,0.22558759]
[1747750634660,4.04171045,2474.2,2474.1,9.50958759]
[1747750634859,4.04171045,2474.2,2474.1,9.284]
[1747750635420,4.04220057,2473.9,2473.8,17.455]
[1747750635732,4.04220057,2473.9,2473.8,34.739]
[1747750636127,4.04220057,2473.9,2473.8,26.74]
[1747750637054,4.04220057,2473.9,2473.8,17.455]
[1747750637307,4.04220057,2473.9,2473.8,26.74]
[1747750638107,4.04220057,2473.9,2473.8,17.455]
[1747750638386,14.96100057,2473.9,2473.8,26.74]
[1747750639101,14.15220057,2473.9,2473.8,26.74]
[1747750642165,22.15220057,2473.9,2473.8,26.74]
[1747750642672,22.15220057,2473.9,2473.8,29.161313]
[1747750642673,14.15220057,2473.9,2473.8,29.161313]
[1747750642873,14.15220057,2473.9,2473.8,26.74]
[1747750644434,4.04220057,2473.9,2473.8,26.74]
[1747750644584,4.04220057,2473.9,2473.8,30.54]
[1747750644918,4.04220057,2473.9,2473.8,26.74]
[1747750645106,4.04220057,2473.9,2473.8,26.96595249]
[1747750645306,4.04220057,2473.9,2473.8,31.31934849]
[1747750645701,4.04220057,2473.9,2473.8,26.96595249]
[1747750646089,4.04220057,2473.9,2473.8,26.74]
[1747750646595,12.04220057,2473.9,2473.8,26.74]
[1747750647112,4.04220057,2473.9,2473.8,26.74]
[1747750649231,22.15220057,2473.9,2473.8,26.741]
[1747750651136,22.97650057,2473.9,2473.8,17.455]
[1747750651338,22.97650057,2473.9,2473.8,26.523]
[1747750653640,22.97650057,2473.9,2473.8,17.455]
[1747750653817,22.97650057,2473.9,2473.8,26.523]
[1747750656050,22.97650057,2473.9,2473.8,17.455]
[1747750657219,22.97650057,2473.9,2473.8,26.524]
[1747750658857,22.97650057,2473.9,2473.8,9.069]
[1747750659027,23.52650057,2473.9,2473.8,9.069]
[1747750659471,12.83294465,2473.2,2473.1,17.452]
[1747750659653,22.94294465,2473.2,2473.1,26.521]
[1747750659961,22.15334465,2473.2,2473.1,26.521]
[1747750660819,12.04334465,2473.2,2473.1,26.521]
[1747750661024,4.04334465,2473.2,2473.1,26.521]
[1747750663268,4.04334465,2473.2,2473.1,31.481378]
[1747750663570,4.04334465,2473.2,2473.1,29.30412]
[1747750663733,4.04310367,2473.4,2473.1,29.85412]
[1747750663938,4.04310367,2473.4,2473.2,13.002415]
[1747750664163,4.04310367,2473.4,2473.3,11.32003]
[1747750664373,4.04310367,2473.4,2473.3,15.22239288]
[1747750664671,4.04310367,2473.4,2473.3,12.36554288]
[1747750664880,4.04310367,2473.4,2473.1,17.452]
[1747750664881,4.04334465,2473.2,2473.1,17.452]
[1747750665173,4.04334465,2473.2,2473.1,26.522]
[1747750665973,12.04334465,2473.2,2473.1,17.452]
[1747750666149,12.85754465,2473.2,2473.1,9.069]
[1747750666985,12.04334465,2473.2,2473.1,9.069]
[1747750669166,4.04448938,2472.5,2472.4,17.453]
[1747750669362,4.04448938,2472.5,2472.4,26.523]
[1747750673004,4.04350814,2473.1,2472.4,38.20947232]
[1747750673151,12.04367323,2473.0,2472.4,28.32934232]
[1747750673354,4.04443454,2472.6,2472.4,28.32934232]
[1747750673564,4.04443454,2472.6,2472.5,12.960297]
[1747750673785,4.04443454,2472.6,2472.5,11.698967]
[1747750674104,4.04443454,2472.6,2472.5,7.819467]
[1747750674314,8.0,2473.2,2472.5,11.98434793]
[1747750674561,4.04429871,2472.7,2472.5,4.16488093]
[1747750674711,4.04263017,2473.7,2472.7,0.55]
[1747750674869,4.04416225,2472.7,2472.6,1.311]
[1747750675065,4.04416225,2472.7,2472.6,9.93788733]
[1747750675271,4.04416225,2472.7,2472.6,10.19838733]
[1747750675901,4.04400533,2472.8,2472.6,10.19838733]
[1747750676091,4.04396813,2472.9,2472.7,16.093065]
[1747750676272,4.04396813,2472.9,2472.8,2.62914523]
[1747750676471,4.04400364,2472.8,2472.6,4.69152233]
[1747750676673,4.04400364,2472.8,2472.7,10.4774]
[1747750676874,4.04390271,2472.9,2472.7,10.4774]
[1747750677073,4.04371469,2473.0,2472.7,10.4774]
[1747750677074,4.0439987,2472.8,2472.7,10.4774]
[1747750677283,4.0439987,2472.8,2472.7,7.444119]
[1747750677492,4.0439987,2472.8,2472.7,2.713659]
[1747750678298,4.0439987,2472.8,2472.7,2.099159]
[1747750678506,4.0439987,2472.8,2472.7,17.231159]
[1747750678876,4.0439987,2472.8,2472.7,19.26612656]
[1747750680830,4.0439987,2472.8,2472.7,17.41227]
[1747750681825,4.04416225,2472.7,2472.6,0.761]
[1747750682137,4.04448938,2472.5,2472.4,17.453]
[1747750682333,4.04448938,2472.5,2472.4,26.256]
[1747750682489,4.04448938,2472.5,2472.4,17.453]
[1747750682826,12.04448938,2472.5,2472.4,26.256]
[1747750686033,4.04448938,2472.5,2472.4,26.256]
[1747750688038,0.822,2473.0,2472.4,26.256]
[1747750688348,0.47598678,2473.5,2472.5,0.83624277]
[1747750688349,0.7698,2473.4,2472.5,0.83624277]
[1747750688633,0.7698,2473.4,2472.5,0.7958]
[1747750688634,4.04416455,2472.7,2472.5,0.7958]
[1747750688932,4.04416455,2472.7,2472.6,11.12272]
[1747750689128,4.04416455,2472.7,2472.6,8.90796288]
[1747750689318,4.04416455,2472.7,2472.5,0.7958]
[1747750689319,4.04432581,2472.6,2472.5,0.7958]
[1747750689516,4.04432581,2472.6,2472.5,15.357582]
[1747750689729,4.04422338,2472.7,2472.5,15.357582]
[1747750689943,4.04422338,2472.7,2472.6,4.899016]
[1747750690302,4.04318117,2473.3,2472.6,8.2099176]
[1747750690511,0.7698,2473.4,2472.6,8.2099176]
[1747750690512,4.04390459,2472.9,2472.6,3.3109016]
[1747750690718,4.04374436,2473.0,2472.7,3.425086]
[1747750691002,0.8095,2473.7,2472.6,3.8609016]
[1747750691003,4.04416225,2472.7,2472.6,3.8609016]
[1747750691237,4.04432581,2472.6,2472.5,0.7958]
[1747750691439,4.04432581,2472.6,2472.5,9.5998]
[1747750691636,4.04432581,2472.6,2472.5,8.804]
[1747750691798,4.04423585,2472.7,2472.5,16.41633]
[1747750692003,4.04419076,2472.7,2472.6,14.136257]
[1747750692223,4.04419076,2472.7,2472.6,9.424277]
[1747750692622,4.04395494,2472.9,2472.6,9.424277]
[1747750692821,4.0439987,2472.8,2472.7,9.152739]
[1747750693027,4.0439987,2472.8,2472.7,6.264325]
[1747750693215,4.04384403,2472.9,2472.7,7.7711575]
[1747750693540,0.8041,2473.8,2472.8,11.622284]
[1747750693835,4.5179837,2474.1,2472.9,0.55]
[1747750693836,4.04318719,2473.3,2472.9,0.55]
[1747750694039,4.04310194,2473.4,2473.1,0.55]
[1747750694202,4.04310194,2473.4,2473.2,7.47183]
[1747750694406,4.04310194,2473.4,2473.3,17.458]
[1747750694603,4.04310194,2473.4,2473.3,21.23088]
[1747750694809,4.04310194,2473.4,2473.3,20.05032]
[1747750695606,4.04310194,2473.4,2473.3,17.458]
[1747750696033,4.04310194,2473.4,2473.3,21.174075]
[1747750696228,4.0428591,2473.5,2473.3,21.174075]
[1747750696229,4.04297472,2473.5,2473.3,22.17614165]
[1747750696415,4.81159615,2474.5,2473.5,0.7666]
[1747750696615,0.7703,2474.5,2473.6,8.803]
[1747750696813,4.04249206,2473.8,2473.6,8.803]
[1747750697035,4.04252738,2473.7,2473.6,8.803]
[1747750697241,4.04252738,2473.7,2473.6,10.813415]
[1747750698050,4.04244222,2473.8,2473.6,10.813415]
[1747750698249,4.04252738,2473.7,2473.6,8.803]
[1747750698817,4.04252738,2473.7,2473.6,3.706]
[1747750699022,4.04269081,2473.6,2473.5,0.41331194]
[1747750699322,4.04269081,2473.6,2473.5,11.047295]
[1747750700059,4.04269081,2473.6,2473.5,9.20541443]
[1747750700222,4.04269081,2473.6,2473.5,8.802]
[1747750701076,4.81152358,2474.5,2473.5,8.802]
[1747750701212,0.7703,2474.5,2473.7,0.8025]
[1747750701415,4.04195617,2474.1,2473.8,0.59041785]
[1747750701653,4.04073056,2474.8,2473.9,5.518995]
[1747750701850,4.04172262,2474.2,2474.0,8.802]
[1747750702065,4.04145559,2474.4,2474.2,0.8179]
[1747750702268,4.04145559,2474.4,2474.3,28.474823]
[1747750702417,4.04122146,2474.5,2474.3,28.474823]
[1747750702620,0.7768,2475.5,2474.5,0.55]
[1747750702824,4.04053529,2475.0,2474.7,8.55]
[1747750703153,4.04056729,2474.9,2474.8,2.548725]
[1747750703526,4.03942478,2475.6,2474.8,2.548725]
[1747750703863,4.04073056,2474.8,2474.6,0.8096]
[1747750704025,4.04089384,2474.7,2474.6,0.8096]
[1747750704221,4.03960487,2475.5,2474.7,18.492028]
[1747750704452,4.03926162,2475.7,2474.7,0.55]
[1747750704720,4.04056729,2474.9,2474.8,16.8]
[1747750704918,4.04056729,2474.9,2474.8,8.8]
[1747750705257,4.04056729,2474.9,2474.8,13.179993]
[1747750705461,4.04040404,2475.0,2474.9,8.0]
[1747750705617,4.04040404,2475.0,2474.9,15.434545]
[1747750705821,4.04040404,2475.0,2474.9,8.0]
[1747750706026,4.04040404,2475.0,2474.9,13.886361]
[1747750706341,4.04040404,2475.0,2474.9,10.178445]
[1747750706519,4.04011493,2475.2,2474.9,10.178445]
[1747750706719,4.04034722,2475.1,2475.0,13.910433]
[1747750706959,4.04005089,2475.3,2475.2,0.7969]
[1747750707143,4.04005089,2475.3,2475.2,31.75469]
[1747750707452,4.04005089,2475.3,2475.2,34.5001]
[1747750707627,4.85151184,2476.1,2475.2,35.0501]
[1747750707829,4.03942875,2475.6,2475.4,8.0]
[1747750708028,4.03942875,2475.6,2475.5,24.898874]
[1747750708233,4.03895734,2475.9,2475.7,0.55]
[1747750708448,0.8126,2476.5,2475.9,8.7822]
[1747750708449,4.03877221,2476.0,2475.9,8.7822]
[1747750708657,4.03877221,2476.0,2475.9,17.37228]
[1747750708833,4.03868597,2476.1,2475.9,17.37228]
[1747750709161,4.03840366,2476.3,2476.1,0.55]
[1747750709362,4.03820335,2476.4,2476.3,8.0]
[1747750709517,4.03820335,2476.4,2476.3,8.798]
[1747750709963,6.63463199,2477.5,2476.4,0.55]
[1747750710123,4.03795679,2476.5,2476.4,8.55]
[1747750710322,4.03795679,2476.5,2476.4,14.431116]
[1747750710721,4.03795679,2476.5,2476.4,9.20728905]
[1747750711447,4.03795679,2476.5,2476.4,8.796]
[1747750713683,4.03828292,2476.3,2476.2,17.446]
[1747750713988,4.03828292,2476.3,2476.2,26.238]
[1747750713989,4.79968292,2476.3,2476.2,26.238]
[1747750714149,4.03828292,2476.3,2476.2,26.238]
[1747750714489,4.03828292,2476.3,2476.2,36.23503]
[1747750714640,4.03828292,2476.3,2476.2,26.788]
[1747750714848,4.03828292,2476.3,2476.2,28.51825]
[1747750715157,4.03828292,2476.3,2476.2,26.238]
[1747750715375,4.03828292,2476.3,2476.2,36.42505]
[1747750715684,4.03828292,2476.3,2476.2,40.3682]
[1747750715878,4.03828292,2476.3,2476.2,38.99525]
[1747750716066,4.03828292,2476.3,2476.2,37.94765]